[Event "44th Chess Olympiad Women 2022"]
[Site "Chennai"]
[Date "2022.08.05"]
[Round "7.54"]
[White "Obondo, Cynthia Awino"]
[Black "Sara, Gadalla Karar"]
[Result "1-0"]
[WhiteElo "1439"]
[BlackElo "1433"]
[Annotator "NA"]
[PlyCount "109"]
[EventDate "2022.??.??"]
[TimeControl "60"]

1. d4 {[%emt 0:00:21]} d5 {[%emt 0:00:14]} 2. Nf3 {[%emt 0:00:26]} e6 {[%emt 0:
00:00]} 3. e3 {[%emt 0:00:28]} c5 {[%emt 0:00:09]} 4. b3 {[%emt 0:00:25]} Nf6 {
[%emt 0:00:13]} 5. Bd3 {[%emt 0:00:18]} b6 {[%emt 0:00:28]} 6. O-O {[%emt 0:00:
00]} Ba6 {[%emt 0:00:48]} 7. c4 {[%emt 0:01:13]} Bd6 {[%emt 0:01:00]} 8. Nbd2 {
[%emt 0:00:32]} O-O {[%emt 0:01:53]} 9. Bb2 {[%emt 0:00:16]} Nc6 {[%emt 0:00:
00]} 10. Ne5 {[%emt 0:01:00]} Ne7 {[%emt 0:00:47]} 11. f4 {[%emt 0:00:36]} Nf5
{[%emt 0:08:08]} 12. Qe2 {[%emt 0:01:59]} cxd4 {[%emt 0:03:19]} 13. exd4 {
[%emt 0:01:40]} h6 {[%emt 0:11:10]} 14. g4 {[%emt 0:00:55]} dxc4 {[%emt 0:00:
00]} 15. Ndxc4 {[%emt 0:05:55]} Bxe5 {[%emt 0:04:27]} 16. fxe5 {[%emt 0:21:40]}
Nxd4 {[%emt 0:04:59]} 17. Qe3 {[%emt 0:04:30]} Nxg4 {[%emt 0:16:52]} 18. Qxd4 {
[%emt 0:00:16]} Qxd4+ {[%emt 0:00:14]} 19. Bxd4 {[%emt 0:00:19]} Rad8 {[%emt 0:
00:00]} 20. Rf4 {[%emt 0:02:04]} Nxe5 {[%emt 0:02:50]} 21. Nxe5 {[%emt 0:00:24]
} Bb7 {[%emt 0:06:29]} 22. Bc4 {[%emt 0:14:32]} Rd6 {[%emt 0:04:30]} 23. Bc3 {
[%emt 0:00:45]} a5 {[%emt 0:06:07]} 24. Raf1 {[%emt 0:00:43]} f6 {[%emt 0:00:
00]} 25. Ng6 {[%emt 0:00:32]} Re8 {[%emt 0:02:10]} 26. Rd4 {[%emt 0:02:20]}
Rxd4 {[%emt 0:03:37]} 27. Bxd4 {[%emt 0:00:10]} Bd5 {[%emt 0:01:08]} 28. Bxb6 {
[%emt 0:02:22]} a4 {[%emt 0:01:26]} 29. Nf4 {[%emt 0:01:28]} Bxc4 {[%emt 0:00:
00]} 30. bxc4 {[%emt 0:00:29]} Kf7 {[%emt 0:01:40]} 31. Rd1 {[%emt 0:00:16]} e5
{[%emt 0:00:44]} 32. Nd5 {[%emt 0:00:07]} Rc8 {[%emt 0:02:20]} 33. c5 {[%emt 0:
00:00]} e4 {[%emt 0:01:01]} 34. Nc3 {[%emt 0:00:12]} e3 {[%emt 0:01:44]} 35.
Nxa4 {[%emt 0:01:02]} f5 {[%emt 0:00:25]} 36. Nc3 {[%emt 0:00:13]} g5 {[%emt 0:
00:00]} 37. Kg2 {[%emt 0:02:26]} f4 {[%emt 0:00:12]} 38. h3 {[%emt 0:00:19]}
Ke6 {[%emt 0:01:32]} 39. Kf3 {[%emt 0:00:41]} h5 {[%emt 0:00:20]} 40. a4 {
[%emt 0:00:37]} Rf8 {[%emt 0:02:22]} 41. Rd6+ {[%emt 0:30:27]} Kf5 {[%emt 0:00:
00]} 42. Rd5+ {[%emt 0:00:14]} Kg6 {[%emt 0:00:52]} 43. Ne4 {[%emt 0:00:46]}
g4+ {[%emt 0:00:17]} 44. hxg4 {[%emt 0:00:10]} hxg4+ {[%emt 0:00:10]} 45. Kxg4
{[%emt 0:00:13]} e2 {[%emt 0:00:08]} 46. Rd6+ {[%emt 0:02:15]} Kg7 {[%emt 0:00:
00]} 47. Rd7+ {[%emt 0:01:32]} Kg8 {[%emt 0:01:05]} 48. Re7 {[%emt 0:02:24]} f3
{[%emt 0:00:18]} 49. Nf2 {[%emt 0:00:53]} Rf6 {[%emt 0:00:00]} 50. a5 {[%emt 0:
00:00]} Kf8 {[%emt 0:00:00]} 51. Re4 {[%emt 0:00:00]} Kf7 {[%emt 0:00:00]} 52.
a6 {[%emt 0:00:00]} Re6 {[%emt 0:00:00]} 53. Rxe6 {[%emt 0:00:00]} Kxe6 {
[%emt 0:00:00]} 54. Ba5 {[%emt 0:00:00]} Kd5 {[%emt 0:00:00]} 55. a7 {[%emt 0:
00:00]} 1-0

[Event "44th Chess Olympiad Women 2022"]
[Site "Chennai"]
[Date "2022.08.05"]
[Round "7.55"]
[White "El Flow, Khuloud"]
[Black "Shih, Ching-An"]
[Result "1/2-1/2"]
[WhiteElo "1836"]
[BlackElo "1582"]
[Annotator "NA RC"]
[PlyCount "64"]
[EventDate "2022.??.??"]
[TimeControl "60"]

1. e4 {[%emt 0:00:03]} e5 {[%emt 0:00:14]} 2. Nf3 {[%emt 0:00:05]} Nc6 {
[%emt 0:00:09]} 3. Bc4 {[%emt 0:00:09]} Be7 {[%emt 0:00:10]} 4. O-O {[%emt 0:
00:00]} Nf6 {[%emt 0:00:08]} 5. d3 {[%emt 0:02:15]} d6 {[%emt 0:01:50]} 6. h3 {
[%emt 0:00:10]} O-O {[%emt 0:00:08]} 7. Bg5 {[%emt 0:01:02]} Na5 {[%emt 0:00:
00]} 8. Nbd2 {[%emt 0:01:20]} Nxc4 {[%emt 0:02:57]} 9. Nxc4 {[%emt 0:00:12]}
Nd5 {[%emt 0:05:16]} 10. Qd2 {[%emt 0:05:13]} Bxg5 {[%emt 0:00:18]} 11. Qxg5 {
[%emt 0:03:24]} Qxg5 {[%emt 0:00:16]} 12. Nxg5 {[%emt 0:00:02]} Nf4 {[%emt 0:
00:00]} 13. Rae1 {[%emt 0:05:19]} h6 {[%emt 0:00:39]} 14. Nf3 {[%emt 0:00:21]}
f5 {[%emt 0:00:47]} 15. Kh2 {[%emt 0:02:47]} fxe4 {[%emt 0:02:53]} 16. dxe4 {
[%emt 0:01:24]} Be6 {[%emt 0:00:40]} 17. Nfd2 {[%emt 0:04:04]} Rf7 {[%emt 0:00:
00]} 18. a3 {[%emt 0:07:03]} Raf8 {[%emt 0:01:45]} 19. Ne3 {[%emt 0:04:57]}
Nxh3 {[%emt 0:08:04]} 20. f3 {[%emt 0:04:39]} Ng5 {[%emt 0:03:14]} 21. Rf2 {
[%emt 0:03:40]} Rf4 {[%emt 0:02:48]} 22. Ref1 {[%emt 0:04:24]} R4f6 {[%emt 0:
00:00]} 23. g4 {[%emt 0:02:26]} h5 {[%emt 0:07:29]} 24. Kg3 {[%emt 0:01:01]}
hxg4 {[%emt 0:01:09]} 25. fxg4 {[%emt 0:06:39]} Rxf2 {[%emt 0:00:47]} 26. Rxf2
{[%emt 0:00:36]} Rxf2 {[%emt 0:00:39]} 27. Kxf2 {[%emt 0:00:01]} Kf7 {[%emt 0:
00:00]} 28. Kg3 {[%emt 0:02:55]} Kg6 {[%emt 0:02:13]} 29. Kh4 {[%emt 0:04:25]}
Nh7 {[%emt 0:04:54]} 30. Nf3 {[%emt 0:03:26]} Nf6 {[%emt 0:00:53]} 31. Ng5 {
[%emt 0:00:25]} Bd7 {[%emt 0:00:08]} 32. Nf5 {[%emt 0:00:41]} Ng8 {[%emt 0:00:
00]} 1/2-1/2

[Event "44th Chess Olympiad Women 2022"]
[Site "Chennai"]
[Date "2022.08.05"]
[Round "7.57"]
[White "Kapali, Binita"]
[Black "Jacobs, Annelaine"]
[Result "0-1"]
[WhiteElo "1511"]
[BlackElo "1612"]
[Annotator "NA RC"]
[PlyCount "110"]
[EventDate "2022.??.??"]
[TimeControl "60"]

1. e4 {[%emt 0:00:27]} g6 {[%emt 0:00:06]} 2. d4 {[%emt 0:00:11]} d6 {[%emt 0:
00:00]} 3. Nc3 {[%emt 0:00:53]} Bg7 {[%emt 0:00:28]} 4. Nf3 {[%emt 0:00:37]}
Nf6 {[%emt 0:00:16]} 5. h3 {[%emt 0:03:04]} Nbd7 {[%emt 0:01:28]} 6. Bc4 {
[%emt 0:00:32]} O-O {[%emt 0:00:19]} 7. Be3 {[%emt 0:00:44]} e5 {[%emt 0:07:49]
} 8. dxe5 {[%emt 0:04:29]} dxe5 {[%emt 0:01:08]} 9. O-O {[%emt 0:00:33]} c6 {
[%emt 0:01:34]} 10. Qd2 {[%emt 0:04:31]} Qc7 {[%emt 0:01:36]} 11. Rad1 {
[%emt 0:02:27]} b5 {[%emt 0:09:56]} 12. Bd3 {[%emt 0:04:31]} a5 {[%emt 0:08:03]
} 13. b3 {[%emt 0:11:59]} Bb7 {[%emt 0:19:03]} 14. Bh6 {[%emt 0:05:27]} Rfd8 {
[%emt 0:02:33]} 15. Bxg7 {[%emt 0:00:47]} Kxg7 {[%emt 0:00:05]} 16. Qe3 {
[%emt 0:02:07]} Nh5 {[%emt 0:23:55]} 17. Ne2 {[%emt 0:04:01]} f6 {[%emt 0:00:
00]} 18. Nh4 {[%emt 0:01:45]} Nf4 {[%emt 0:05:05]} 19. Qg3 {[%emt 0:02:30]}
Nxe2+ {[%emt 0:01:30]} 20. Bxe2 {[%emt 0:00:17]} Kh8 {[%emt 0:01:17]} 21. Qe3 {
[%emt 0:12:10]} Nf8 {[%emt 0:01:16]} 22. Qh6 {[%emt 0:09:49]} Qg7 {[%emt 0:00:
00]} 23. Qxg7+ {[%emt 0:00:25]} Kxg7 {[%emt 0:00:05]} 24. Nf3 {[%emt 0:00:45]}
Ne6 {[%emt 0:00:26]} 25. Nd2 {[%emt 0:00:38]} Nd4 {[%emt 0:02:27]} 26. Bd3 {
[%emt 0:01:19]} Ne6 {[%emt 0:00:48]} 27. f3 {[%emt 0:01:30]} Nf4 {[%emt 0:00:
00]} 28. Nb1 {[%emt 0:00:38]} Nxd3 {[%emt 0:00:24]} 29. Rxd3 {[%emt 0:01:08]}
Rxd3 {[%emt 0:00:03]} 30. cxd3 {[%emt 0:00:06]} Rd8 {[%emt 0:00:03]} 31. Rd1 {
[%emt 0:00:00]} b4 {[%emt 0:01:19]} 32. Kf2 {[%emt 0:00:00]} Kf7 {[%emt 0:00:
00]} 33. Ke3 {[%emt 0:00:00]} c5 {[%emt 0:00:17]} 34. Nd2 {[%emt 0:00:00]} Ba6
{[%emt 0:00:11]} 35. Nc4 {[%emt 0:00:00]} Bxc4 {[%emt 0:00:15]} 36. bxc4 {
[%emt 0:00:00]} a4 {[%emt 0:01:31]} 37. Kd2 {[%emt 0:00:12]} Ke6 {[%emt 0:00:
00]} 38. Kc2 {[%emt 0:00:56]} Rb8 {[%emt 0:00:38]} 39. Rb1 {[%emt 0:00:20]} Rb7
{[%emt 0:00:28]} 40. Kd2 {[%emt 0:02:33]} h5 {[%emt 0:00:24]} 41. h4 {[%emt 0:
00:00]} Rg7 {[%emt 0:30:14]} 42. g4 {[%emt 0:04:36]} Rh7 {[%emt 0:00:24]} 43.
Rh1 {[%emt 0:04:51]} Rg7 {[%emt 0:00:00]} 44. Rg1 {[%emt 0:00:00]} Rf7 {
[%emt 0:00:00]} 45. Ke3 {[%emt 0:00:00]} Rf8 {[%emt 0:00:00]} 46. Rg2 {[%emt 0:
00:00]} Rh8 {[%emt 0:00:00]} 47. g5 {[%emt 0:00:37]} f5 {[%emt 0:00:00]} 48.
Rf2 {[%emt 0:06:31]} Rf8 {[%emt 0:00:59]} 49. f4 {[%emt 0:06:00]} fxe4 {
[%emt 0:00:18]} 50. dxe4 {[%emt 0:00:28]} exf4+ {[%emt 0:01:30]} 51. Kd3 {
[%emt 0:01:06]} Ke5 {[%emt 0:00:29]} 52. Kc2 {[%emt 0:00:22]} Rd8 {[%emt 0:00:
00]} 53. Re2 {[%emt 0:00:17]} Rd4 {[%emt 0:00:09]} 54. Rd2 {[%emt 0:01:18]}
Rxd2+ {[%emt 0:00:11]} 55. Kxd2 {[%emt 0:00:07]} Kxe4 {[%emt 0:00:03]} 0-1

[Event "44th Chess Olympiad Women 2022"]
[Site "Chennai"]
[Date "2022.08.05"]
[Round "7.57"]
[White "Neupane, Anisha"]
[Black "Cabral, Sylvi"]
[Result "1-0"]
[WhiteElo "1488"]
[BlackElo "1100"]
[Annotator "NA"]
[PlyCount "71"]
[EventDate "2022.??.??"]
[TimeControl "60"]

1. e4 {[%emt 0:00:02]} e5 {[%emt 0:00:08]} 2. Nf3 {[%emt 0:00:30]} d5 {[%emt 0:
00:00]} 3. exd5 {[%emt 0:04:47]} e4 {[%emt 0:00:10]} 4. Ne5 {[%emt 0:05:56]}
Qxd5 {[%emt 0:00:19]} 5. d4 {[%emt 0:02:26]} exd3 {[%emt 0:01:01]} 6. Nxd3 {
[%emt 0:00:17]} Bd6 {[%emt 0:02:20]} 7. Nc3 {[%emt 0:00:22]} Qe6+ {[%emt 0:00:
00]} 8. Be2 {[%emt 0:01:37]} Nf6 {[%emt 0:02:14]} 9. Bg5 {[%emt 0:05:08]} Nc6 {
[%emt 0:07:48]} 10. Qd2 {[%emt 0:07:35]} Bd7 {[%emt 0:15:31]} 11. O-O-O {
[%emt 0:01:06]} O-O-O {[%emt 0:07:06]} 12. Kb1 {[%emt 0:02:33]} h6 {[%emt 0:00:
00]} 13. Bf4 {[%emt 0:03:04]} Rhe8 {[%emt 0:05:02]} 14. Rhe1 {[%emt 0:05:00]}
Bxf4 {[%emt 0:06:52]} 15. Qxf4 {[%emt 0:05:13]} Nd5 {[%emt 0:02:06]} 16. Nxd5 {
[%emt 0:02:11]} Qxd5 {[%emt 0:00:24]} 17. Bf3 {[%emt 0:03:56]} Qa5 {[%emt 0:00:
00]} 18. a3 {[%emt 0:16:16]} Qb6 {[%emt 0:04:51]} 19. Qxf7 {[%emt 0:02:05]} g5
{[%emt 0:03:41]} 20. Rxe8 {[%emt 0:00:46]} Rxe8 {[%emt 0:00:57]} 21. Bg4 {
[%emt 0:03:26]} Qd4 {[%emt 0:02:29]} 22. Qxe8+ {[%emt 0:02:59]} Nd8 {[%emt 0:
00:00]} 23. Bxd7+ {[%emt 0:01:10]} Qxd7 {[%emt 0:00:57]} 24. Qxd7+ {[%emt 0:00:
00]} Kxd7 {[%emt 0:00:10]} 25. Ne5+ {[%emt 0:00:18]} Ke8 {[%emt 0:01:03]} 26.
Ng4 {[%emt 0:00:38]} Nf7 {[%emt 0:00:46]} 27. g3 {[%emt 0:01:33]} b6 {[%emt 0:
00:00]} 28. Re1+ {[%emt 0:00:10]} Kf8 {[%emt 0:00:32]} 29. Re6 {[%emt 0:01:31]}
Kg7 {[%emt 0:02:42]} 30. Re7 {[%emt 0:00:12]} Kg6 {[%emt 0:02:52]} 31. Rxc7 {
[%emt 0:02:09]} a5 {[%emt 0:00:28]} 32. Rc6+ {[%emt 0:00:25]} Kg7 {[%emt 0:00:
00]} 33. Rxb6 {[%emt 0:00:14]} Kh7 {[%emt 0:02:37]} 34. Ra6 {[%emt 0:01:14]}
Kg7 {[%emt 0:02:50]} 35. Rxa5 {[%emt 0:00:10]} Kg8 {[%emt 0:05:23]} 36. c4 {
[%emt 0:00:39]} 1-0

[Event "44th Chess Olympiad Women 2022"]
[Site "Chennai"]
[Date "2022.08.05"]
[Round "7.58"]
[White "Kaslan, Catherine"]
[Black "Marochkina, Nadezhda Valerevna"]
[Result "1-0"]
[WhiteElo "1872"]
[BlackElo "1687"]
[Annotator "NA"]
[PlyCount "97"]
[EventDate "2022.??.??"]
[TimeControl "60"]

1. e4 {[%emt 0:00:08]} c6 {[%emt 0:00:06]} 2. d4 {[%emt 0:00:08]} d5 {[%emt 0:
00:00]} 3. Nc3 {[%emt 0:00:20]} dxe4 {[%emt 0:00:13]} 4. Nxe4 {[%emt 0:00:12]}
Nf6 {[%emt 0:00:14]} 5. Nxf6+ {[%emt 0:00:40]} exf6 {[%emt 0:00:08]} 6. c3 {
[%emt 0:00:19]} Bd6 {[%emt 0:00:19]} 7. Bd3 {[%emt 0:00:44]} O-O {[%emt 0:00:
00]} 8. Ne2 {[%emt 0:03:07]} Qc7 {[%emt 0:04:57]} 9. Qc2 {[%emt 0:02:42]} h5 {
[%emt 0:11:35]} 10. Be3 {[%emt 0:05:11]} b5 {[%emt 0:02:37]} 11. O-O-O {
[%emt 0:02:14]} Be6 {[%emt 0:04:58]} 12. Bf5 {[%emt 0:23:52]} Qd7 {[%emt 0:00:
00]} 13. Bd3 {[%emt 0:11:09]} a5 {[%emt 0:05:59]} 14. f4 {[%emt 0:12:09]} Qe7 {
[%emt 0:05:03]} 15. Bf2 {[%emt 0:05:28]} Bg4 {[%emt 0:05:28]} 16. f5 {[%emt 0:
00:00]} Qc7 {[%emt 0:20:20]} 17. h3 {[%emt 0:01:45]} Bxe2 {[%emt 0:00:48]} 18.
Qxe2 {[%emt 0:00:36]} Bg3 {[%emt 0:01:29]} 19. Bxg3 {[%emt 0:00:43]} Qxg3 {
[%emt 0:00:07]} 20. Qxh5 {[%emt 0:00:11]} Nd7 {[%emt 0:02:48]} 21. Qg4 {
[%emt 0:09:06]} Qxg4 {[%emt 0:01:26]} 22. hxg4 {[%emt 0:00:15]} Rfe8 {[%emt 0:
00:00]} 23. Rh3 {[%emt 0:00:33]} Nb6 {[%emt 0:00:31]} 24. Rdh1 {[%emt 0:01:15]}
Kf8 {[%emt 0:00:10]} 25. Rh8+ {[%emt 0:00:04]} Ke7 {[%emt 0:00:09]} 26. Rxe8+ {
[%emt 0:01:17]} Rxe8 {[%emt 0:00:09]} 27. Re1+ {[%emt 0:00:07]} Kd7 {[%emt 0:
00:00]} 28. Rxe8 {[%emt 0:07:06]} Kxe8 {[%emt 0:00:03]} 29. Be4 {[%emt 0:00:10]
} Kd7 {[%emt 0:00:22]} 30. b3 {[%emt 0:00:20]} b4 {[%emt 0:02:09]} 31. Kb2 {
[%emt 0:03:56]} Kd6 {[%emt 0:01:30]} 32. cxb4 {[%emt 0:06:09]} axb4 {[%emt 0:
00:00]} 33. Kc2 {[%emt 0:00:30]} c5 {[%emt 0:00:25]} 34. Kd3 {[%emt 0:00:08]}
Nd7 {[%emt 0:01:52]} 35. Kc4 {[%emt 0:03:13]} cxd4 {[%emt 0:00:02]} 36. Kxd4 {
[%emt 0:00:07]} Ne5 {[%emt 0:00:03]} 37. Bf3 {[%emt 0:00:12]} g6 {[%emt 0:00:
00]} 38. Be2 {[%emt 0:00:47]} Kc6 {[%emt 0:01:15]} 39. g5 {[%emt 0:00:29]} gxf5
{[%emt 0:01:25]} 40. gxf6 {[%emt 0:00:27]} Nd7 {[%emt 0:00:15]} 41. Kc4 {
[%emt 0:31:15]} Nxf6 {[%emt 0:30:18]} 42. Bf3+ {[%emt 0:00:44]} Kd6 {[%emt 0:
00:00]} 43. Kxb4 {[%emt 0:00:19]} Nd7 {[%emt 0:00:43]} 44. a4 {[%emt 0:00:48]}
Nc5 {[%emt 0:00:15]} 45. Kc4 {[%emt 0:00:00]} f4 {[%emt 0:00:00]} 46. a5 {
[%emt 0:00:00]} f5 {[%emt 0:00:00]} 47. b4 {[%emt 0:00:00]} Nd7 {[%emt 0:00:00]
} 48. a6 {[%emt 0:00:00]} Kc7 {[%emt 0:00:00]} 49. a7 {[%emt 0:00:00]} 1-0

[Event "44th Chess Olympiad Women 2022"]
[Site "Chennai"]
[Date "2022.08.05"]
[Round "7.58"]
[White "Sy Mame, Binta"]
[Black "Kaslan, Victoria"]
[Result "0-1"]
[WhiteElo "1256"]
[BlackElo "1477"]
[Annotator "NA RC"]
[PlyCount "120"]
[EventDate "2022.??.??"]
[TimeControl "60"]

1. e4 {[%emt 0:00:05]} c5 {[%emt 0:00:06]} 2. Bc4 {[%emt 0:00:40]} d6 {[%emt 0:
00:00]} 3. Nf3 {[%emt 0:00:47]} Nf6 {[%emt 0:00:15]} 4. Nc3 {[%emt 0:01:02]} a6
{[%emt 0:00:14]} 5. Ng5 {[%emt 0:00:47]} e6 {[%emt 0:00:42]} 6. O-O {[%emt 0:
00:00]} b5 {[%emt 0:00:34]} 7. Be2 {[%emt 0:01:07]} Be7 {[%emt 0:03:11]} 8. d3
{[%emt 0:00:58]} Bb7 {[%emt 0:00:42]} 9. Be3 {[%emt 0:05:27]} Nbd7 {[%emt 0:00:
00]} 10. a3 {[%emt 0:03:23]} O-O {[%emt 0:00:39]} 11. Nf3 {[%emt 0:04:08]} Qc7
{[%emt 0:01:37]} 12. d4 {[%emt 0:03:47]} Nxe4 {[%emt 0:02:19]} 13. Nxe4 {
[%emt 0:00:44]} Bxe4 {[%emt 0:00:16]} 14. dxc5 {[%emt 0:00:55]} dxc5 {[%emt 0:
00:00]} 15. Bd3 {[%emt 0:02:59]} Bxd3 {[%emt 0:07:06]} 16. Qxd3 {[%emt 0:00:56]
} c4 {[%emt 0:01:39]} 17. Qe4 {[%emt 0:02:01]} Nf6 {[%emt 0:01:41]} 18. Qh4 {
[%emt 0:07:38]} Nd5 {[%emt 0:02:54]} 19. Bg5 {[%emt 0:03:17]} f6 {[%emt 0:00:
00]} 20. Bd2 {[%emt 0:02:02]} e5 {[%emt 0:04:17]} 21. Qg4 {[%emt 0:02:30]} Qc8
{[%emt 0:06:28]} 22. Qe4 {[%emt 0:01:49]} Rd8 {[%emt 0:05:06]} 23. Rad1 {
[%emt 0:01:35]} Bc5 {[%emt 0:11:18]} 24. Ba5 {[%emt 0:05:05]} Bb6 {[%emt 0:00:
00]} 25. Rxd5 {[%emt 0:01:37]} Bxa5 {[%emt 0:00:49]} 26. Nh4 {[%emt 0:04:12]}
Qe6 {[%emt 0:03:02]} 27. Rfd1 {[%emt 0:00:34]} Rxd5 {[%emt 0:01:34]} 28. Rxd5 {
[%emt 0:03:00]} Rd8 {[%emt 0:01:31]} 29. Rxd8+ {[%emt 0:00:27]} Bxd8 {[%emt 0:
00:00]} 30. Nf5 {[%emt 0:01:38]} Qd7 {[%emt 0:03:17]} 31. Qg4 {[%emt 0:00:21]}
Kh8 {[%emt 0:01:33]} 32. h3 {[%emt 0:01:32]} g6 {[%emt 0:00:52]} 33. Ne3 {
[%emt 0:01:09]} Qxg4 {[%emt 0:00:25]} 34. Nxg4 {[%emt 0:00:19]} Kg7 {[%emt 0:
00:00]} 35. f3 {[%emt 0:00:42]} Bb6+ {[%emt 0:00:33]} 36. Kf1 {[%emt 0:00:19]}
Kf7 {[%emt 0:00:49]} 37. Ke2 {[%emt 0:00:36]} Ke6 {[%emt 0:00:53]} 38. b3 {
[%emt 0:01:30]} f5 {[%emt 0:00:56]} 39. Nh2 {[%emt 0:00:49]} cxb3 {[%emt 0:00:
00]} 40. cxb3 {[%emt 0:01:05]} Kd5 {[%emt 0:00:59]} 41. g4 {[%emt 0:33:40]} Bc5
{[%emt 0:39:42]} 42. a4 {[%emt 0:02:18]} bxa4 {[%emt 0:00:48]} 43. bxa4 {
[%emt 0:01:19]} Kc4 {[%emt 0:00:18]} 44. Nf1 {[%emt 0:05:38]} Kb4 {[%emt 0:00:
00]} 45. gxf5 {[%emt 0:01:26]} gxf5 {[%emt 0:00:00]} 46. a5 {[%emt 0:00:00]} f4
{[%emt 0:00:00]} 47. Nd2 {[%emt 0:00:00]} Bd4 {[%emt 0:00:00]} 48. Kd3 {
[%emt 0:00:00]} Kxa5 {[%emt 0:00:00]} 49. Nb3+ {[%emt 0:00:00]} Kb4 {[%emt 0:
00:00]} 50. Nxd4 {[%emt 0:00:00]} exd4 {[%emt 0:00:00]} 51. Kxd4 {[%emt 0:00:
00]} a5 {[%emt 0:00:00]} 52. Ke4 {[%emt 0:00:00]} a4 {[%emt 0:00:00]} 53. Kxf4
{[%emt 0:00:00]} a3 {[%emt 0:00:00]} 54. Kg4 {[%emt 0:00:00]} a2 {[%emt 0:00:
00]} 55. f4 {[%emt 0:00:00]} a1=Q {[%emt 0:00:00]} 56. Kh4 {[%emt 0:00:00]}
Qf6+ {[%emt 0:00:00]} 57. Kg4 {[%emt 0:00:00]} Kc4 {[%emt 0:00:00]} 58. Kf3 {
[%emt 0:00:00]} Kd4 {[%emt 0:00:00]} 59. Kg4 {[%emt 0:00:00]} Ke4 {[%emt 0:00:
00]} 60. Kh5 {[%emt 0:00:00]} Kxf4 {[%emt 0:00:00]} 0-1

[Event "44th Chess Olympiad Women 2022"]
[Site "Chennai"]
[Date "2022.08.05"]
[Round "7.58"]
[White "Wijnhard, Joelle"]
[Black "Sy, Mariama"]
[Result "1-0"]
[WhiteElo "1291"]
[BlackElo "1211"]
[Annotator "NA"]
[PlyCount "109"]
[EventDate "2022.??.??"]
[TimeControl "60"]

1. e4 {[%emt 0:00:04]} e5 {[%emt 0:00:14]} 2. Nf3 {[%emt 0:00:13]} Nc6 {
[%emt 0:00:18]} 3. Nc3 {[%emt 0:00:58]} Nf6 {[%emt 0:00:39]} 4. Be2 {[%emt 0:
00:00]} Bb4 {[%emt 0:00:16]} 5. d3 {[%emt 0:02:42]} Bxc3+ {[%emt 0:00:27]} 6.
bxc3 {[%emt 0:00:07]} d5 {[%emt 0:01:20]} 7. exd5 {[%emt 0:04:13]} Nxd5 {
[%emt 0:00:51]} 8. Bd2 {[%emt 0:02:35]} O-O {[%emt 0:01:13]} 9. O-O {[%emt 0:
00:00]} Bf5 {[%emt 0:04:17]} 10. c4 {[%emt 0:06:36]} Nf4 {[%emt 0:03:03]} 11.
Bxf4 {[%emt 0:11:25]} exf4 {[%emt 0:00:29]} 12. Rb1 {[%emt 0:02:50]} b6 {
[%emt 0:00:14]} 13. Nd2 {[%emt 0:03:30]} Qd6 {[%emt 0:02:27]} 14. Bf3 {[%emt 0:
00:00]} Rad8 {[%emt 0:01:10]} 15. Rb5 {[%emt 0:04:18]} Nd4 {[%emt 0:03:21]} 16.
Rd5 {[%emt 0:04:20]} Qg6 {[%emt 0:05:34]} 17. Rxd8 {[%emt 0:02:26]} Rxd8 {
[%emt 0:00:18]} 18. Re1 {[%emt 0:06:13]} Qd6 {[%emt 0:05:15]} 19. Be4 {[%emt 0:
00:00]} Bg6 {[%emt 0:04:42]} 20. Bxg6 {[%emt 0:00:39]} Qxg6 {[%emt 0:00:40]}
21. Nf3 {[%emt 0:03:30]} Qd6 {[%emt 0:05:12]} 22. Nxd4 {[%emt 0:01:02]} Qxd4 {
[%emt 0:00:42]} 23. Qa1 {[%emt 0:06:43]} Qxa1 {[%emt 0:02:49]} 24. Rxa1 {
[%emt 0:00:03]} c5 {[%emt 0:00:43]} 25. a4 {[%emt 0:05:28]} Re8 {[%emt 0:00:42]
} 26. Kf1 {[%emt 0:00:43]} a5 {[%emt 0:02:17]} 27. Re1 {[%emt 0:01:47]} Rxe1+ {
[%emt 0:02:45]} 28. Kxe1 {[%emt 0:00:05]} g5 {[%emt 0:00:15]} 29. Ke2 {[%emt 0:
00:00]} Kg7 {[%emt 0:00:17]} 30. Kf3 {[%emt 0:00:59]} f5 {[%emt 0:00:22]} 31.
g3 {[%emt 0:01:53]} g4+ {[%emt 0:00:33]} 32. Kxf4 {[%emt 0:00:15]} Kf6 {
[%emt 0:00:25]} 33. c3 {[%emt 0:00:55]} h5 {[%emt 0:01:18]} 34. d4 {[%emt 0:00:
00]} Ke6 {[%emt 0:09:37]} 35. d5+ {[%emt 0:05:30]} Kd6 {[%emt 0:00:43]} 36.
Kxf5 {[%emt 0:00:09]} b5 {[%emt 0:00:26]} 37. cxb5 {[%emt 0:00:36]} Kxd5 {
[%emt 0:01:13]} 38. b6 {[%emt 0:01:39]} Kc6 {[%emt 0:00:09]} 39. c4 {[%emt 0:
00:00]} Kxb6 {[%emt 0:00:55]} 40. Ke5 {[%emt 0:00:42]} Kc6 {[%emt 0:00:29]} 41.
Ke6 {[%emt 0:30:14]} Kc7 {[%emt 0:30:42]} 42. Kd5 {[%emt 0:00:20]} Kb6 {
[%emt 0:00:22]} 43. Kd6 {[%emt 0:00:12]} Kb7 {[%emt 0:08:01]} 44. Kxc5 {
[%emt 0:00:08]} Kc7 {[%emt 0:00:12]} 45. Kb5 {[%emt 0:00:09]} Kd6 {[%emt 0:00:
00]} 46. Kb6 {[%emt 0:00:22]} Ke5 {[%emt 0:00:38]} 47. c5 {[%emt 0:00:09]} Kd4
{[%emt 0:00:46]} 48. c6 {[%emt 0:00:29]} Kc4 {[%emt 0:00:22]} 49. c7 {[%emt 0:
00:00]} Kb4 {[%emt 0:00:07]} 50. c8=Q {[%emt 0:00:09]} Kxa4 {[%emt 0:00:08]}
51. Qa6 {[%emt 0:00:48]} Kb4 {[%emt 0:03:18]} 52. Qxa5+ {[%emt 0:00:11]} Kc4
53. Qb5+ {[%emt 0:00:21]} Kc3 54. Qd5 Kc2 {[%emt 0:01:21]} 55. Qd4 {[%emt 0:00:
00]} 1-0